bitfinex-derivatives/quotes_BTCF0:USTF0_20241117
["timestamp","ask_amount","ask_price","bid_price","bid_amount"]
[1731857206483,0.002,90368.0,90367.0,0.47832505]
[1731857206892,0.002,90368.0,90367.0,0.8762005]
[1731857207593,0.002,90368.0,90367.0,0.47832505]
[1731857208189,0.002,90368.0,90367.0,0.10365099]
[1731857209202,0.002,90368.0,90367.0,0.47895236]
[1731857209501,0.002,90368.0,90367.0,0.47883489]
[1731857214095,0.002,90368.0,90367.0,0.10365099]
[1731857216205,0.002,90368.0,90367.0,0.47823447]
[1731857217803,0.002,90368.0,90367.0,0.95374897]
[1731857219192,0.002,90368.0,90367.0,1.0162772]
[1731857219398,0.09,90398.0,90379.0,0.055319]
[1731857219598,0.055305,90402.0,90398.0,0.055308]
[1731857219998,0.416106,90401.0,90398.0,0.055308]
[1731857220307,0.416106,90401.0,90398.0,0.45398467]
[1731857220308,0.05696704,90399.0,90398.0,0.45398467]
[1731857220505,0.05696704,90399.0,90398.0,0.055308]
[1731857220705,0.18976939,90399.0,90398.0,0.055308]
[1731857221110,0.055308,90397.0,90396.0,0.33136145]
[1731857221306,0.055308,90397.0,90396.0,0.38667045]
[1731857221714,0.00166004,90399.0,90398.0,0.055308]
[1731857223608,0.00166004,90399.0,90398.0,0.056308]
[1731857224810,0.00166004,90399.0,90398.0,0.057308]
[1731857227411,0.00166004,90399.0,90398.0,0.25523355]
[1731857227809,0.00166004,90399.0,90398.0,0.057308]
[1731857228107,0.00166004,90399.0,90398.0,0.25523355]
[1731857228503,0.00166004,90399.0,90398.0,0.057308]
[1731857229310,0.00166004,90399.0,90398.0,0.25523355]
[1731857229510,0.00166004,90399.0,90398.0,0.057308]
[1731857231208,0.00166004,90399.0,90398.0,0.122708]
[1731857231420,0.00013134,90412.0,90411.0,0.0553]
[1731857231629,0.00013134,90412.0,90411.0,0.11782823]
[1731857232615,0.00013134,90412.0,90411.0,0.11882823]
[1731857234310,0.00013134,90412.0,90411.0,0.0563]
[1731857234511,0.00013134,90412.0,90411.0,0.0553]
[1731857235319,0.00013134,90412.0,90411.0,0.07828294]
[1731857236822,0.00013134,90412.0,90405.0,0.19741097]
[1731857237126,0.3608,90410.0,90404.0,0.02376155]
[1731857237430,0.055303,90406.0,90402.0,0.055305]
[1731857237613,0.0313,90405.0,90398.0,0.3608]
[1731857238013,0.0313,90405.0,90404.0,0.055304]
[1731857238221,0.0313,90405.0,90395.0,0.19741097]
[1731857238222,0.21647171,90405.0,90395.0,0.19741097]
[1731857238527,0.055309,90397.0,90387.0,0.19741097]
[1731857238731,0.055309,90397.0,90387.0,0.02303423]
[1731857238912,0.3608,90402.0,90380.0,0.25272897]
[1731857238913,0.055314,90388.0,90380.0,0.25272897]
[1731857239118,0.0321,90387.0,90380.0,0.055318]
[1731857239523,0.0321,90387.0,90385.0,0.02213831]
[1731857242226,0.09,90393.0,90387.0,0.055314]
[1731857243025,0.09,90393.0,90388.0,0.055314]
[1731857243528,0.3608,90394.0,90387.0,0.09517171]
[1731857243829,0.3608,90394.0,90392.0,0.055311]
[1731857246033,0.3608,90394.0,90387.0,0.29258268]
[1731857246034,0.3608,90394.0,90387.0,0.09517171]
[1731857246229,0.055311,90393.0,90386.0,0.28372597]
[1731857246420,0.055311,90393.0,90387.0,0.19741097]
[1731857246625,0.055314,90388.0,90386.0,0.19741097]
[1731857246822,0.055315,90387.0,90382.0,0.19741097]
[1731857247128,0.0326,90392.0,90382.0,0.02367083]
[1731857247332,0.0326,90392.0,90379.0,0.055319]
[1731857247333,0.055315,90386.0,90379.0,0.25272997]
[1731857247533,0.055315,90386.0,90380.0,0.19741097]
[1731857248430,0.055315,90386.0,90381.0,0.25272897]
[1731857249824,0.0326,90392.0,90381.0,0.25272897]
[1731857249825,0.0326,90392.0,90381.0,0.19741097]
[1731857250034,0.055313,90390.0,90382.0,0.055317]
[1731857250242,0.055314,90389.0,90382.0,0.055317]
[1731857250631,0.055314,90389.0,90382.0,0.25272797]
[1731857251932,0.055314,90389.0,90383.0,0.055317]
[1731857254447,0.055314,90388.0,90383.0,0.055317]
[1731857254646,0.0326,90392.0,90382.0,0.19741097]
[1731857254950,0.0326,90392.0,90379.0,0.02311318]
[1731857254951,0.055315,90386.0,90381.0,0.19741097]
[1731857255341,0.055315,90386.0,90382.0,0.19741097]
[1731857255540,0.055316,90384.0,90382.0,0.19741097]
[1731857256944,0.3608,90386.0,90381.0,0.19741097]
[1731857257141,0.087217,90383.0,90382.0,0.19741097]
[1731857257340,0.0319,90383.0,90380.0,0.19741097]
[1731857257647,0.055318,90381.0,90380.0,0.19741097]
[1731857257846,0.055318,90381.0,90379.0,0.19741097]
[1731857258145,0.055318,90381.0,90377.0,0.02213831]
[1731857258146,0.0319,90383.0,90375.0,0.19741097]
[1731857258348,0.05532,90378.0,90375.0,0.19741097]
[1731857258646,0.05532,90378.0,90374.0,0.19741097]
[1731857259056,0.05532,90378.0,90374.0,0.02354957]
[1731857259253,0.05532,90378.0,90374.0,0.19741097]
[1731857259460,0.055317,90384.0,90379.0,0.055319]
[1731857261251,0.055317,90383.0,90375.0,0.25273297]
[1731857261653,0.055317,90383.0,90375.0,0.055322]
[1731857261957,0.055317,90383.0,90376.0,0.055321]
[1731857263553,0.055317,90383.0,90377.0,0.19741097]
[1731857263850,0.055317,90383.0,90376.0,0.25273197]
[1731857264358,0.055317,90383.0,90379.0,0.19741097]
[1731857265052,0.3608,90384.0,90379.0,0.19741097]
[1731857265257,0.20861551,90395.0,90383.0,0.09517171]
[1731857265461,0.0766,90395.0,90392.0,0.19825358]
[1731857265657,0.0766,90395.0,90393.0,1.5]
[1731857265952,0.0766,90395.0,90394.0,0.26446065]
[1731857266162,0.0766,90395.0,90393.0,1.55531]
[1731857266163,0.0766,90395.0,90393.0,1.55587]
[1731857266347,0.0766,90395.0,90393.0,1.55531]
[1731857266955,0.0766,90395.0,90394.0,0.38878514]
[1731857267258,0.00165976,90407.0,90406.0,0.055303]
[1731857268755,0.00165976,90407.0,90406.0,0.31955293]
[1731857269457,0.00165976,90407.0,90406.0,0.055303]
[1731857270166,0.00165976,90407.0,90406.0,0.07849813]
[1731857273766,0.00165976,90407.0,90406.0,0.17366984]
[1731857274166,0.00165976,90407.0,90406.0,0.43749494]
[1731857274461,0.00165976,90407.0,90406.0,0.17366984]
[1731857274654,0.00165976,90407.0,90406.0,0.43749494]
[1731857274855,0.00165976,90407.0,90406.0,0.17366984]
[1731857275063,0.00165976,90407.0,90406.0,0.43749494]
[1731857275258,0.00165976,90407.0,90406.0,0.17366984]
[1731857278160,0.00165976,90407.0,90406.0,0.19580799]
[1731857278669,0.00165976,90407.0,90406.0,0.10063628]
[1731857279569,0.00165976,90407.0,90406.0,0.29826706]
[1731857279969,0.00165976,90407.0,90406.0,0.10063628]
[1731857280374,0.0553,90411.0,90409.0,0.0553]
[1731857280558,0.00013134,90412.0,90411.0,0.0553]
[1731857281165,0.00013134,90412.0,90411.0,0.25293078]
[1731857281771,0.00013134,90412.0,90411.0,0.0553]
[1731857282570,0.00013134,90412.0,90411.0,0.25285112]
[1731857283168,0.00013134,90412.0,90411.0,1.5553]
[1731857283678,0.00013134,90412.0,90411.0,1.75285112]
[1731857283977,0.00013134,90412.0,90411.0,1.5553]
[1731857284874,0.00013134,90412.0,90411.0,1.75280439]
[1731857285262,0.00013134,90412.0,90411.0,1.75279372]
[1731857286559,0.00013134,90412.0,90411.0,1.5553]
[1731857286971,0.00013134,90412.0,90411.0,1.9161]
[1731857287178,0.00013134,90412.0,90411.0,2.11360136]
[1731857287558,0.00013134,90412.0,90411.0,1.9161]
[1731857287759,0.00013134,90412.0,90411.0,2.11360906]
[1731857287970,0.00013134,90412.0,90411.0,1.9161]
[1731857288167,0.00013134,90412.0,90411.0,2.11360906]
[1731857288963,0.00013134,90412.0,90411.0,1.9161]
[1731857290368,0.366,90430.0,90428.0,0.055289]
[1731857290677,0.3608,90430.0,90429.0,0.06245258]
[1731857291061,0.3608,90430.0,90424.0,0.11774358]
[1731857291062,0.055291,90426.0,90424.0,0.11774358]
[1731857291585,8.761e-05,90425.0,90424.0,0.11774358]
[1731857294382,0.05537861,90425.0,90424.0,0.11774358]
[1731857294978,8.761e-05,90425.0,90424.0,0.11774358]
[1731857296481,8.761e-05,90425.0,90424.0,0.38156868]
[1731857297580,0.05537861,90425.0,90424.0,0.11774358]
[1731857298179,0.05537861,90425.0,90423.0,0.2638251]
[1731857298180,8.761e-05,90425.0,90423.0,0.2638251]
[1731857298483,0.33176,90424.0,90414.0,0.26424732]
[1731857298670,0.33176,90424.0,90407.0,0.3304399]
[1731857298671,0.55583312,90418.0,90410.0,0.26424732]
[1731857298870,0.55583312,90418.0,90409.0,0.26424732]
[1731857298871,0.0553,90410.0,90409.0,0.26424732]
[1731857299090,0.3608,90410.0,90404.0,0.26424732]
[1731857299379,0.055303,90405.0,90403.0,0.26424732]
[1731857299767,0.055303,90405.0,90403.0,0.31955132]
[1731857299966,0.055303,90405.0,90403.0,0.3820039]
[1731857300365,0.055303,90405.0,90403.0,0.31955132]
[1731857302482,0.055303,90405.0,90404.0,0.02213795]
[1731857303284,0.055304,90404.0,90403.0,0.26436982]
[1731857303482,0.3608,90410.0,90402.0,0.26436982]
[1731857303783,0.055307,90399.0,90398.0,0.26436982]
[1731857303983,0.055307,90399.0,90398.0,0.26448613]
[1731857304174,0.055307,90399.0,90397.0,0.26448613]
[1731857304373,0.0325,90398.0,90397.0,0.26448613]
[1731857304578,0.087808,90398.0,90397.0,0.26448613]
[1731857305474,0.087808,90398.0,90396.0,0.26448613]
[1731857305783,0.055309,90396.0,90395.0,0.26448613]
[1731857305980,0.055309,90396.0,90394.0,0.05531]
[1731857306176,0.055309,90396.0,90395.0,0.26434615]
[1731857307486,0.05531,90395.0,90394.0,0.26434615]
[1731857310189,0.0325,90398.0,90392.0,0.26434615]
[1731857310487,0.055311,90393.0,90391.0,0.02213815]
[1731857315789,0.055314,90388.0,90386.0,1.52410386]
[1731857315988,0.055314,90388.0,90386.0,1.5]
[1731857316189,0.3608,90392.0,90382.0,0.0328]
[1731857316391,0.3608,90392.0,90382.0,0.0558701]
[1731857316392,0.055317,90383.0,90382.0,0.0558701]
[1731857319794,0.02349443,90388.0,90382.0,0.0558701]
[1731857319795,0.055314,90388.0,90382.0,0.1111871]
[1731857319998,0.3608,90392.0,90382.0,0.1111871]
[1731857320791,0.055316,90384.0,90382.0,0.1111871]
[1731857324396,0.06250697,90391.0,90382.0,0.1111871]
[1731857324597,0.055312,90391.0,90386.0,0.06250697]
[1731857324901,0.3608,90392.0,90390.0,0.055313]
[1731857325211,0.3608,90392.0,90386.0,0.06250697]
[1731857325704,0.055313,90390.0,90386.0,0.06250697]
[1731857326792,0.3608,90392.0,90391.0,0.055312]
[1731857327099,0.3608,90392.0,90391.0,0.11781897]
[1731857328500,0.3608,90392.0,90391.0,0.38216512]
[1731857328697,0.3608,90400.0,90391.0,0.18032594]
[1731857329002,0.055301,90409.0,90407.0,0.055302]
[1731857329191,0.3608,90410.0,90409.0,0.055301]
[1731857329394,0.3608,90410.0,90409.0,1.555301]
[1731857329805,0.3608,90410.0,90409.0,1.5]
[1731857331899,0.3608,90410.0,90409.0,0.02320588]
[1731857332206,0.4161,90410.0,90408.0,0.0307]
[1731857332406,0.4161,90410.0,90408.0,1.5307]
[1731857332900,0.4161,90410.0,90408.0,0.05442349]
[1731857333094,0.4161,90410.0,90408.0,0.02372349]
[1731857333299,0.4161,90410.0,90403.0,0.06250697]
[1731857333300,0.4161,90410.0,90404.0,0.055304]
[1731857333497,0.055301,90409.0,90404.0,0.055304]
[1731857334098,0.3608,90410.0,90404.0,0.055304]
[1731857334400,0.3608,90410.0,90403.0,0.02315692]
[1731857334603,0.3608,90410.0,90401.0,0.26454286]
[1731857334896,0.3608,90410.0,90400.0,1.5]
[1731857334897,0.3608,90410.0,90400.0,1.76454286]
[1731857335093,0.3608,90410.0,90400.0,0.26454286]
[1731857335094,0.055301,90409.0,90400.0,0.26454286]
[1731857335293,0.42330697,90410.0,90399.0,0.055307]
[1731857335695,0.42330697,90410.0,90399.0,0.31984986]
[1731857336603,0.42330697,90410.0,90400.0,0.26454286]
[1731857336796,0.055304,90404.0,90400.0,0.26454286]
[1731857337295,0.055304,90404.0,90399.0,0.31984986]
[1731857337602,0.055304,90404.0,90399.0,0.07878587]
[1731857337905,0.055304,90404.0,90399.0,0.34332873]
[1731857338202,0.055305,90403.0,90399.0,0.07878587]
[1731857338500,0.055305,90403.0,90399.0,0.34332873]
[1731857338896,0.055305,90403.0,90402.0,0.02213774]
[1731857339493,0.47916798,90410.0,90404.0,0.055304]
[1731857339805,0.055302,90407.0,90404.0,0.055304]
[1731857340295,0.3608,90410.0,90402.0,0.08464471]
[1731857340493,0.3608,90410.0,90408.0,0.06250697]
[1731857340804,0.3608,90410.0,90408.0,0.11780797]
[1731857342915,0.3608,90410.0,90409.0,0.055301]
[1731857344105,0.3608,90411.0,90409.0,0.055301]
[1731857346997,0.055301,90409.0,90408.0,0.06250697]
[1731857347196,0.055301,90409.0,90405.0,0.055303]
[1731857347398,0.055301,90409.0,90403.0,0.06250697]
[1731857347608,0.055301,90409.0,90406.0,0.055303]
[1731857350015,0.055301,90409.0,90408.0,0.055302]
[1731857351202,0.3608,90411.0,90403.0,0.06250697]
[1731857351400,0.3608,90411.0,90407.0,0.055302]
[1731857351608,0.3608,90411.0,90408.0,0.055301]
[1731857352605,0.4161,90411.0,90408.0,0.055301]
[1731857354201,0.3608,90411.0,90410.0,0.0553]
[1731857354407,0.3608,90411.0,90410.0,0.11780697]
[1731857356402,0.00165963,90414.0,90413.0,0.055299]
[1731857356708,0.05695763,90414.0,90413.0,0.055299]
[1731857357415,0.05695763,90414.0,90413.0,0.32015781]
[1731857357806,0.05695763,90414.0,90413.0,0.055299]
[1731857358009,0.05695763,90414.0,90413.0,0.32015781]
[1731857358208,0.18949532,90414.0,90413.0,0.055299]
[1731857358412,0.13419732,90414.0,90410.0,0.06250697]
[1731857358604,0.055299,90413.0,90410.0,0.06250697]
[1731857358914,0.055299,90412.0,90410.0,0.0553]
[1731857360015,0.00165963,90414.0,90413.0,0.055299]
[1731857360607,0.13438814,90414.0,90413.0,0.055299]
[1731857361417,0.00165963,90414.0,90413.0,0.32032263]
[1731857362116,0.00165963,90414.0,90413.0,0.055299]
[1731857362319,0.00165963,90414.0,90413.0,0.3203189]
[1731857362811,0.05695763,90414.0,90413.0,0.3203189]
[1731857363320,0.18968614,90414.0,90412.0,0.2650199]
[1731857363515,0.05695763,90414.0,90413.0,0.2650199]
[1731857364818,0.18966165,90414.0,90412.0,0.055299]
[1731857365507,0.13270402,90413.0,90412.0,0.055299]
[1731857366514,0.05695763,90414.0,90412.0,0.055299]
[1731857366710,0.13270138,90413.0,90412.0,0.055299]
[1731857370014,0.055299,90412.0,90411.0,0.02213529]
[1731857370215,0.18800607,90412.0,90411.0,0.02213529]
[1731857370519,0.055299,90412.0,90411.0,0.02213529]
[1731857371623,0.00165963,90414.0,90413.0,0.055299]
[1731857372429,0.00165963,90414.0,90413.0,1.555299]
[1731857373125,0.00165963,90414.0,90413.0,1.94580695]
[1731857375517,0.00165963,90414.0,90413.0,2.27649541]
[1731857377026,0.00165963,90414.0,90413.0,0.77649541]
[1731857377426,0.00165963,90414.0,90413.0,0.38598746]
[1731857377936,0.00165963,90414.0,90413.0,0.4462841]
[1731857378323,0.00165963,90414.0,90413.0,0.055299]
[1731857378822,0.00165963,90414.0,90413.0,0.11780597]
[1731857379328,0.00165963,90414.0,90413.0,1.61780597]
[1731857382734,0.00165963,90414.0,90413.0,1.94845797]
[1731857382937,0.00165963,90414.0,90413.0,2.27753892]
[1731857383230,0.00165963,90414.0,90413.0,2.34004589]
[1731857383425,0.00165963,90414.0,90413.0,2.34012061]
[1731857383833,0.00165963,90414.0,90413.0,2.27761364]
[1731857384029,0.00165963,90414.0,90413.0,1.88602572]
[1731857385534,0.00165963,90414.0,90413.0,1.94694896]
[1731857389753,0.3608,90424.0,90423.0,0.055292]
[1731857391933,8.761e-05,90425.0,90424.0,0.055292]
[1731857392538,8.761e-05,90425.0,90424.0,0.11779897]
[1731857392844,8.761e-05,90425.0,90424.0,0.50813785]
[1731857395137,8.761e-05,90425.0,90424.0,0.83871345]
[1731857395337,8.761e-05,90425.0,90424.0,0.50813785]
[1731857395645,8.761e-05,90425.0,90424.0,0.83867328]
[1731857396441,8.761e-05,90425.0,90424.0,0.4483344]
[1731857396739,8.761e-05,90425.0,90424.0,0.86126857]
[1731857397146,8.761e-05,90425.0,90424.0,0.471733]
[1731857397446,8.761e-05,90425.0,90424.0,0.861159]
[1731857397641,8.761e-05,90425.0,90424.0,0.471733]
[1731857397847,8.761e-05,90425.0,90424.0,0.8611823]
[1731857398048,8.761e-05,90425.0,90424.0,0.471733]
[1731857398946,8.761e-05,90425.0,90424.0,0.14119757]
[1731857402549,8.761e-05,90425.0,90424.0,0.471733]
[1731857402738,8.761e-05,90425.0,90424.0,0.14119757]
[1731857402940,0.0326,90435.0,90434.0,0.055286]
[1731857403149,0.0326,90435.0,90434.0,0.11779297]
[1731857403936,0.03272123,90435.0,90434.0,0.11779297]
[1731857405240,0.00012123,90435.0,90434.0,0.11779297]
[1731857405940,0.00012123,90435.0,90434.0,0.47859297]
[1731857406245,0.001659,90447.0,90446.0,0.055278]
[1731857406448,0.001659,90447.0,90446.0,1.555278]
[1731857407042,0.0313,90452.0,90446.0,1.555278]
[1731857407251,0.00013116,90451.0,90446.0,1.61778497]
[1731857407651,0.055277,90448.0,90446.0,1.56250697]
[1731857407949,0.055278,90447.0,90446.0,1.56250697]
[1731857408950,0.055278,90447.0,90446.0,1.61778497]
[1731857409451,0.00013116,90451.0,90450.0,0.055276]
[1731857409636,0.00013116,90451.0,90450.0,0.11778297]
[1731857413246,0.00013116,90451.0,90450.0,0.055276]
[1731857413449,0.00013116,90451.0,90450.0,0.11778297]
[1731857413742,0.055277,90448.0,90446.0,1.54627622]
[1731857413950,0.055277,90448.0,90446.0,1.54563622]
[1731857414754,0.05528,90443.0,90442.0,0.0006]
[1731857414945,0.3608,90447.0,90437.0,0.06250697]
[1731857415142,0.055283,90438.0,90437.0,0.06250697]
[1731857416346,0.055284,90436.0,90435.0,0.06310697]
[1731857416545,0.055284,90436.0,90435.0,0.06250697]
[1731857416952,0.087084,90436.0,90435.0,0.06250697]
[1731857417742,0.14959097,90436.0,90432.0,0.00010012]
[1731857417948,0.14959097,90436.0,90431.0,1.50056]
[1731857417949,0.055286,90433.0,90431.0,0.00056]
[1731857418150,0.055286,90433.0,90418.0,0.26432379]
[1731857418352,0.055296,90417.0,90416.0,0.26432379]
[1731857418552,0.055296,90417.0,90414.0,1.50056]
[1731857418755,0.055296,90417.0,90414.0,1.76450015]
[1731857419051,0.055296,90417.0,90416.0,0.19841117]
[1731857419449,0.055296,90417.0,90416.0,0.26091814]
[1731857419648,0.055296,90417.0,90416.0,0.08463387]
[1731857421152,0.055296,90417.0,90416.0,0.0221269]
[1731857422651,0.055296,90417.0,90416.0,0.22047693]
[1731857423951,0.055296,90417.0,90416.0,0.0221269]
[1731857424548,0.0324,90422.0,90416.0,0.0221269]
[1731857424747,0.055294,90421.0,90420.0,0.06250697]
[1731857426656,0.085794,90421.0,90420.0,0.06250697]
[1731857426860,0.117894,90421.0,90420.0,0.06250697]
[1731857427364,0.055296,90417.0,90415.0,0.06250697]
[1731857430255,0.055297,90416.0,90415.0,0.06250697]
[1731857438269,0.055297,90416.0,90415.0,0.11780397]
[1731857438568,0.3608,90420.0,90417.0,0.055296]
[1731857438765,0.3608,90420.0,90415.0,0.06250697]
[1731857438766,0.3608,90420.0,90419.0,0.055295]
[1731857439961,0.3608,90420.0,90415.0,0.06250697]
[1731857439962,0.055296,90417.0,90415.0,0.06250697]
[1731857440267,0.3608,90420.0,90414.0,0.07743307]
[1731857440469,0.055297,90415.0,90414.0,0.07743307]
[1731857440668,0.055295,90419.0,90415.0,0.055297]
[1731857440869,0.055295,90419.0,90416.0,0.055297]
[1731857441374,0.055295,90418.0,90416.0,0.055297]
[1731857441565,0.055297,90416.0,90414.0,0.02213507]
[1731857443866,0.055297,90416.0,90415.0,0.19835003]
[1731857444264,0.3608,90418.0,90413.0,1.50064]
[1731857444464,0.416095,90418.0,90417.0,0.1985182]
[1731857444969,0.055296,90417.0,90416.0,0.1985182]
[1731857445267,0.055296,90417.0,90416.0,0.19861046]
[1731857445874,0.055298,90414.0,90413.0,1.76506015]
[1731857446060,0.055298,90414.0,90413.0,1.76450015]
[1731857446266,0.055298,90414.0,90413.0,1.5]
[1731857446863,0.055298,90414.0,90413.0,1.76491531]
[1731857447069,0.055298,90414.0,90413.0,1.76492556]
[1731857447267,0.055298,90414.0,90413.0,1.5]
[1731857447268,0.18800507,90414.0,90413.0,1.5]
[1731857447774,0.055299,90413.0,90412.0,0.02328353]
[1731857447964,0.13274381,90414.0,90410.0,0.02224612]
[1731857448160,0.0553,90411.0,90410.0,0.02224612]
[1731857448667,0.0553,90411.0,90410.0,1.52224612]
[1731857448864,0.0553,90411.0,90410.0,1.54607541]
[1731857450466,0.0553,90411.0,90410.0,1.60137541]
[1731857451272,0.13274381,90414.0,90412.0,0.055299]
[1731857451273,0.3608,90413.0,90412.0,0.055299]
[1731857451468,0.3608,90413.0,90412.0,0.11780597]
[1731857453274,0.13274381,90414.0,90413.0,0.055299]
[1731857453662,0.3608,90415.0,90413.0,0.055299]
[1731857453867,0.3608,90415.0,90412.0,0.06250697]
[1731857453868,0.3608,90415.0,90414.0,0.3202701]
[1731857454169,0.3608,90415.0,90414.0,1.8202701]
[1731857455674,0.416097,90415.0,90414.0,1.8202701]
[1731857455878,0.416097,90415.0,90414.0,1.7649721]
[1731857456176,0.416097,90415.0,90414.0,1.5]
[1731857458380,0.055298,90414.0,90413.0,0.2649721]
[1731857458581,0.087598,90414.0,90413.0,0.2649721]
[1731857459074,0.087598,90414.0,90413.0,0.3202711]
[1731857459588,0.13274071,90415.0,90414.0,0.055298]
[1731857459885,0.055294,90421.0,90415.0,0.055297]
[1731857459886,0.13274071,90416.0,90415.0,0.055297]
[1731857460484,0.13274071,90417.0,90416.0,0.055297]
[1731857460778,0.13274071,90418.0,90417.0,0.055296]
[1731857460971,0.13274071,90418.0,90417.0,0.11780297]
[1731857461173,0.13274071,90418.0,90417.0,1.61780297]
[1731857461574,0.16591064,90423.0,90417.0,1.56250697]
[1731857461783,0.0766,90425.0,90424.0,0.055292]
[1731857462183,0.0766,90425.0,90424.0,0.32023103]
[1731857463081,0.131891,90425.0,90424.0,0.055292]
[1731857463474,0.26457412,90425.0,90424.0,0.32023103]
[1731857463673,0.131891,90425.0,90424.0,0.055292]
[1731857464486,0.0766,90425.0,90424.0,0.055292]
[1731857464880,0.131891,90425.0,90424.0,0.055292]
[1731857465172,0.055291,90425.0,90424.0,0.055292]
[1731857465368,0.055291,90425.0,90424.0,0.32003631]
[1731857465572,0.055291,90425.0,90424.0,0.055292]
[1731857466175,0.055291,90425.0,90424.0,0.07839854]
[1731857466375,0.055291,90425.0,90424.0,0.34309389]
[1731857467979,0.055291,90425.0,90424.0,0.32820389]
[1731857468182,0.13268312,90430.0,90424.0,0.28780189]
[1731857468489,0.13268312,90430.0,90428.0,0.19848891]
[1731857468490,0.18797112,90430.0,90428.0,0.19848891]
[1731857468788,0.13268312,90430.0,90428.0,0.19848891]
[1731857468981,0.055289,90429.0,90428.0,0.19848891]
[1731857470390,0.08876,90431.0,90427.0,0.19848891]
[1731857470391,0.055289,90428.0,90427.0,0.19848891]
[1731857470579,0.055289,90428.0,90426.0,0.05529]
[1731857470780,0.055289,90428.0,90427.0,0.198452]
[1731857471275,0.13268312,90430.0,90425.0,0.198452]
[1731857471480,0.055291,90426.0,90425.0,0.19848403]
[1731857471988,0.055291,90425.0,90424.0,0.02310654]
[1731857472307,0.055291,90425.0,90423.0,0.055292]
[1731857473491,0.055291,90425.0,90424.0,0.1985155]
[1731857473895,0.055291,90425.0,90424.0,0.2538075]
[1731857474079,0.055291,90425.0,90424.0,0.055292]
[1731857477310,0.06250697,90425.0,90421.0,0.26469535]
[1731857477490,0.06250697,90425.0,90422.0,0.19852638]
[1731857477491,0.055292,90423.0,90422.0,0.19852638]
[1731857477681,0.3608,90422.0,90420.0,0.19852638]
[1731857477881,0.3608,90422.0,90412.0,0.19852638]
[1731857478091,0.3608,90413.0,90410.0,0.00011237]
[1731857478391,0.0553,90411.0,90410.0,0.00011237]
[1731857478593,0.3871,90411.0,90410.0,0.00011237]
[1731857478796,0.4179,90411.0,90410.0,0.00011237]
[1731857480191,0.49462878,90411.0,90410.0,0.00011237]
[1731857481184,0.66053942,90411.0,90410.0,0.00011237]
[1731857481388,0.49462878,90411.0,90410.0,0.00011237]
[1731857482302,0.16282878,90411.0,90410.0,0.00011237]
[1731857482690,0.25158878,90411.0,90410.0,0.00011237]
[1731857486003,0.17498878,90411.0,90410.0,0.00011237]
[1731857488499,0.17498878,90411.0,90403.0,0.04321737]
[1731857488808,0.3608,90405.0,90403.0,0.04321737]
[1731857490603,0.3608,90405.0,90401.0,0.0301]
[1731857491103,0.06250697,90402.0,90400.0,0.02331]
[1731857491299,0.06250697,90402.0,90397.0,1.5006]
[1731857491300,0.055308,90398.0,90397.0,0.0006]
[1731857491503,0.055308,90398.0,90393.0,0.055311]
[1731857491897,0.055308,90398.0,90394.0,1.5]
[1731857492103,0.055306,90401.0,90397.0,0.055308]
[1731857492313,0.09250697,90404.0,90397.0,0.055308]
[1731857492607,0.055307,90400.0,90397.0,0.055308]
[1731857493199,0.055307,90400.0,90394.0,1.50056]
[1731857493508,0.09250697,90404.0,90394.0,1.5]
[1731857493806,0.05531,90395.0,90394.0,1.5]
[1731857494403,0.06250697,90398.0,90392.0,9.224e-05]
[1731857494612,0.055311,90394.0,90392.0,9.224e-05]
[1731857494826,0.055311,90394.0,90393.0,1.5]
[1731857495008,0.06250697,90393.0,90392.0,9.224e-05]
[1731857498103,0.11781797,90393.0,90392.0,9.224e-05]
[1731857498605,0.055311,90393.0,90392.0,9.224e-05]
[1731857502006,0.36148,90396.0,90392.0,9.224e-05]
[1731857502304,0.3608,90396.0,90393.0,0.05531]
[1731857502507,0.416109,90396.0,90393.0,0.05531]
[1731857502706,0.416109,90396.0,90393.0,0.08641]
[1731857503508,0.3608,90396.0,90393.0,0.08641]
[1731857503707,0.05531,90395.0,90393.0,0.08641]
[1731857504611,0.3608,90396.0,90393.0,0.0311]
[1731857504612,0.05531,90394.0,90393.0,0.0311]
[1731857507312,0.05531,90394.0,90392.0,9.224e-05]
[1731857507313,0.055311,90393.0,90392.0,9.224e-05]
[1731857507712,0.055311,90393.0,90392.0,0.19872154]
[1731857507912,0.18771047,90393.0,90392.0,9.224e-05]
[1731857508412,0.416111,90393.0,90392.0,9.224e-05]
[1731857508612,0.58202164,90393.0,90384.0,0.18735154]
[1731857508824,0.055317,90383.0,90382.0,1.5]
[1731857510516,0.11782397,90383.0,90378.0,0.26469535]
[1731857510721,0.11782397,90383.0,90376.0,0.015]
[1731857510722,0.055321,90377.0,90376.0,0.015]
[1731857510924,0.416121,90377.0,90376.0,0.015]
[1731857513421,0.492721,90377.0,90376.0,0.015]
[1731857513622,0.49283369,90377.0,90376.0,0.015]
[1731857514020,0.54665676,90377.0,90376.0,0.015]
[1731857514416,0.9903455,90377.0,90376.0,0.01463601]
[1731857514613,0.87861723,90377.0,90376.0,0.01463601]
[1731857516124,1.17862189,90377.0,90376.0,0.01463601]
[1731857516422,0.97393647,90377.0,90376.0,0.01463601]
[1731857518815,0.64197647,90377.0,90376.0,0.01463601]
[1731857519125,0.74680269,90377.0,90376.0,0.01463601]
[1731857519319,0.84211727,90377.0,90376.0,0.01463601]
[1731857519824,0.67678827,90377.0,90376.0,0.01463601]
[1731857520221,0.58814827,90377.0,90376.0,0.01463601]
[1731857520424,0.49283369,90377.0,90376.0,0.01463601]
[1731857520824,0.62506895,90377.0,90376.0,0.01463601]
[1731857521130,0.71358895,90377.0,90376.0,0.01463601]
[1731857521519,0.58135369,90377.0,90376.0,0.01463601]
[1731857522826,0.71360376,90377.0,90376.0,0.01463601]
[1731857523533,0.58135369,90377.0,90376.0,0.01463601]
[1731857524330,0.63700376,90377.0,90376.0,0.01463601]
[1731857524532,0.50475369,90377.0,90376.0,0.01463601]
[1731857528930,0.44943269,90377.0,90376.0,0.01463601]
[1731857529920,0.36091269,90377.0,90376.0,0.01463601]
[1731857530125,0.00011269,90377.0,90376.0,0.01463601]
[1731857530421,0.00011269,90377.0,90376.0,0.10995059]
[1731857531733,0.00011269,90377.0,90376.0,0.44191059]
[1731857532041,0.18762838,90394.0,90388.0,0.055313]
[1731857532228,0.05531,90394.0,90389.0,0.151313]
[1731857532423,0.22083838,90396.0,90389.0,0.151313]